[Event "Early-Titled-Tuesday-Blitz-September-05-2023"]
[Site "Chess.com"]
[Date "2023.09.05"]
[Round "3"]
[White "FARIZA2018"]
[Black "AdrianaPalao"]
[Result "1-0"]
[WhiteElo "2527"]
[BlackElo "2073"]
[TimeControl "180+1"]
[EndTime "8:27:47 PDT"]
[Termination "FARIZA2018 won by resignation"]

1. e4 {[%clk 0:03:00.9]} 1... e5 {[%clk 0:02:57.5]} 2. Nf3 {[%clk 0:03:00.9]}
2... Nc6 {[%clk 0:02:57]} 3. Bb5 {[%clk 0:03:00.8]} 3... a6 {[%clk 0:02:55.6]}
4. Ba4 {[%clk 0:03:00.8]} 4... Nge7 {[%clk 0:02:52.8]} 5. O-O {[%clk 0:02:59.8]}
5... Ng6 {[%clk 0:02:52.8]} 6. c3 {[%clk 0:02:59]} 6... Be7 {[%clk 0:02:50.4]}
7. d4 {[%clk 0:02:58.9]} 7... d6 {[%clk 0:02:47.6]} 8. d5 {[%clk 0:02:57.3]}
8... b5 {[%clk 0:02:47.9]} 9. dxc6 {[%clk 0:02:56.9]} 9... bxa4 {[%clk
0:02:48.4]} 10. Qxa4 {[%clk 0:02:57.2]} 10... O-O {[%clk 0:02:47.5]} 11. Be3
{[%clk 0:02:57]} 11... Bg4 {[%clk 0:02:43.8]} 12. Nbd2 {[%clk 0:02:56.3]} 12...
f5 {[%clk 0:02:42.6]} 13. exf5 {[%clk 0:02:56.2]} 13... Bxf5 {[%clk 0:02:41.2]}
14. Rad1 {[%clk 0:02:49]} 14... Qc8 {[%clk 0:02:20.1]} 15. Ng5 {[%clk
0:02:01.5]} 15... h6 {[%clk 0:01:59]} 16. Qc4+ {[%clk 0:01:55.1]} 16... Kh8
{[%clk 0:01:50.4]} 17. Ngf3 {[%clk 0:01:54.7]} 17... Nf4 {[%clk 0:01:31.8]} 18.
Bxf4 {[%clk 0:01:46.4]} 18... exf4 {[%clk 0:01:32.7]} 19. Rfe1 {[%clk
0:01:45.9]} 19... Qd8 {[%clk 0:01:14.8]} 20. Nd4 {[%clk 0:01:44.9]} 20... Bg4
{[%clk 0:01:13.6]} 21. f3 {[%clk 0:01:43.7]} 21... Bc8 {[%clk 0:01:08.7]} 22.
Ne6 {[%clk 0:01:41.5]} 22... Bxe6 {[%clk 0:01:09.4]} 23. Rxe6 {[%clk 0:01:40.6]}
23... Bh4 {[%clk 0:01:09.3]} 24. Nb3 {[%clk 0:01:37.1]} 24... Re8 {[%clk
0:01:03.8]} 25. Nd4 {[%clk 0:01:37]} 25... Qg5 {[%clk 0:00:57.2]} 26. Qe2 {[%clk
0:01:19.3]} 26... Qh5 {[%clk 0:00:54.1]} 27. Qe4 {[%clk 0:00:50.7]} 27... Qf7
{[%clk 0:00:51.3]} 28. Kf1 {[%clk 0:00:38.5]} 28... Rab8 {[%clk 0:00:47.8]} 29.
b3 {[%clk 0:00:37.5]} 29... Kg8 {[%clk 0:00:39.9]} 30. Rd2 {[%clk 0:00:35.2]}
30... Rxe6 {[%clk 0:00:37.6]} 31. Qxe6 {[%clk 0:00:35.5]} 31... Re8 {[%clk
0:00:31.4]} 32. Qxf7+ {[%clk 0:00:35.3]} 32... Kxf7 {[%clk 0:00:32.3]} 33. Re2
{[%clk 0:00:35.5]} 33... Bf6 {[%clk 0:00:32.5]} 34. Rxe8 {[%clk 0:00:34.6]}
34... Kxe8 {[%clk 0:00:33.4]} 35. Ke2 {[%clk 0:00:34.7]} 35... Ke7 {[%clk
0:00:28.7]} 36. Kd3 {[%clk 0:00:32.3]} 36... g6 {[%clk 0:00:27.1]} 37. c4 {[%clk
0:00:31.6]} 37... Be5 {[%clk 0:00:27]} 38. b4 {[%clk 0:00:28.7]} 38... Kf6
{[%clk 0:00:13.6]} 39. a4 {[%clk 0:00:28.7]} 39... g5 {[%clk 0:00:12.3]} 40. a5
{[%clk 0:00:28.7]} 40... h5 {[%clk 0:00:08.8]} 41. b5 {[%clk 0:00:28.4]} 41...
axb5 {[%clk 0:00:08.7]} 42. cxb5 {[%clk 0:00:28.4]} 42... g4 {[%clk 0:00:09.6]}
43. a6 {[%clk 0:00:28.2]} 1-0

[Event "Early-Titled-Tuesday-Blitz-September-05-2023"]
[Site "Chess.com"]
[Date "2023.09.05"]
[Round "3"]
[White "stepanosinovsky"]
[Black "Chessbard1972"]
[Result "1-0"]
[WhiteElo "2315"]
[BlackElo "2543"]
[TimeControl "180+1"]
[EndTime "8:27:49 PDT"]
[Termination "stepanosinovsky won by checkmate"]

1. Nf3 {[%clk 0:03:00.9]} 1... Nf6 {[%clk 0:02:59.3]} 2. g3 {[%clk 0:03:01.8]}
2... g6 {[%clk 0:02:59.2]} 3. Bg2 {[%clk 0:03:02.7]} 3... Bg7 {[%clk 0:02:59.2]}
4. O-O {[%clk 0:03:02.7]} 4... O-O {[%clk 0:02:59]} 5. d3 {[%clk 0:03:02.5]}
5... d5 {[%clk 0:02:58.6]} 6. Nbd2 {[%clk 0:03:02.3]} 6... Nc6 {[%clk
0:02:57.4]} 7. e4 {[%clk 0:03:00.5]} 7... e5 {[%clk 0:02:57.6]} 8. Re1 {[%clk
0:02:55.5]} 8... Re8 {[%clk 0:02:54.8]} 9. c3 {[%clk 0:02:53]} 9... a5 {[%clk
0:02:53.1]} 10. a4 {[%clk 0:02:51.9]} 10... h6 {[%clk 0:02:51.6]} 11. Qb3 {[%clk
0:02:46.3]} 11... dxe4 {[%clk 0:02:44.4]} 12. dxe4 {[%clk 0:02:43.7]} 12... b6
{[%clk 0:02:38.2]} 13. Nc4 {[%clk 0:02:36.4]} 13... Be6 {[%clk 0:02:37.1]} 14.
Bf1 {[%clk 0:02:27.7]} 14... Qc8 {[%clk 0:02:24.7]} 15. Qc2 {[%clk 0:02:02.5]}
15... Bg4 {[%clk 0:02:18.1]} 16. Nfd2 {[%clk 0:01:55.6]} 16... Bh3 {[%clk
0:02:16.4]} 17. Be2 {[%clk 0:01:46.5]} 17... Ng4 {[%clk 0:02:03.4]} 18. f3
{[%clk 0:01:40.9]} 18... Nf6 {[%clk 0:01:57.3]} 19. Ne3 {[%clk 0:01:41.2]} 19...
h5 {[%clk 0:01:53.3]} 20. Bb5 {[%clk 0:01:40.7]} 20... Bd7 {[%clk 0:01:51.7]}
21. Ndc4 {[%clk 0:01:39.4]} 21... Nh7 {[%clk 0:01:48.6]} 22. Nd5 {[%clk
0:01:39]} 22... Ne7 {[%clk 0:01:43.9]} 23. Ndxb6 {[%clk 0:01:36.5]} 23... cxb6
{[%clk 0:01:35.8]} 24. Nxb6 {[%clk 0:01:37.4]} 24... Qb7 {[%clk 0:01:12.4]} 25.
Nxd7 {[%clk 0:01:34]} 25... Nc6 {[%clk 0:01:03.2]} 26. Nc5 {[%clk 0:01:29.4]}
26... Qe7 {[%clk 0:00:58.3]} 27. Be3 {[%clk 0:01:28.8]} 27... Rac8 {[%clk
0:00:57.8]} 28. Red1 {[%clk 0:01:25.8]} 28... Red8 {[%clk 0:00:53]} 29. Rxd8+
{[%clk 0:01:25.9]} 29... Nxd8 {[%clk 0:00:51.4]} 30. b4 {[%clk 0:01:24.5]} 30...
Ne6 {[%clk 0:00:49]} 31. Nxe6 {[%clk 0:01:15.6]} 31... Qxe6 {[%clk 0:00:48.4]}
32. bxa5 {[%clk 0:01:15.9]} 32... h4 {[%clk 0:00:47.8]} 33. a6 {[%clk
0:01:14.7]} 33... hxg3 {[%clk 0:00:46.8]} 34. hxg3 {[%clk 0:01:14.5]} 34... f5
{[%clk 0:00:44.6]} 35. a7 {[%clk 0:01:13.3]} 35... f4 {[%clk 0:00:42.8]} 36.
gxf4 {[%clk 0:01:11.8]} 36... exf4 {[%clk 0:00:42.4]} 37. Bf2 {[%clk 0:01:12]}
37... Ng5 {[%clk 0:00:40.5]} 38. Be2 {[%clk 0:01:02.4]} 38... Qh3 {[%clk
0:00:39.8]} 39. Qd1 {[%clk 0:00:58.9]} 39... Bxc3 {[%clk 0:00:27.5]} 40. Rb1
{[%clk 0:00:57.3]} 40... Kg7 {[%clk 0:00:19.7]} 41. Rb8 {[%clk 0:00:52.1]} 41...
Rh8 {[%clk 0:00:15.4]} 42. Rxh8 {[%clk 0:00:50.2]} 42... Qxh8 {[%clk 0:00:15.5]}
43. Qd7+ {[%clk 0:00:49.3]} 43... Kh6 {[%clk 0:00:13.6]} 44. Qd5 {[%clk
0:00:47.1]} 44... Nh3+ {[%clk 0:00:13.2]} 45. Kg2 {[%clk 0:00:46.2]} 45... Nxf2
{[%clk 0:00:12.9]} 46. a8=Q {[%clk 0:00:45.9]} 46... Qf6 {[%clk 0:00:11.8]} 47.
Qad8 {[%clk 0:00:38.9]} 47... Qb6 {[%clk 0:00:06]} 48. Qh4+ {[%clk 0:00:36.3]}
48... Kg7 {[%clk 0:00:05.2]} 49. Qd7+ {[%clk 0:00:36.4]} 49... Kf8 {[%clk
0:00:04.4]} 50. Qhe7+ {[%clk 0:00:36.3]} 50... Kg8 {[%clk 0:00:04.5]} 51. Qf7+
{[%clk 0:00:36.9]} 51... Kh8 {[%clk 0:00:05]} 52. Qh7# {[%clk 0:00:37.8]} 1-0

[Event "Early-Titled-Tuesday-Blitz-September-05-2023"]
[Site "Chess.com"]
[Date "2023.09.05"]
[Round "3"]
[White "ejam94"]
[Black "SpongeBob_03"]
[Result "1-0"]
[WhiteElo "2551"]
[BlackElo "2206"]
[TimeControl "180+1"]
[EndTime "8:27:49 PDT"]
[Termination "ejam94 won by resignation"]

1. e4 {[%clk 0:02:57.5]} 1... c5 {[%clk 0:03:00.1]} 2. Nf3 {[%clk 0:02:57.4]}
2... d6 {[%clk 0:03:00.6]} 3. d4 {[%clk 0:02:55.7]} 3... cxd4 {[%clk 0:03:01.5]}
4. Nxd4 {[%clk 0:02:56.5]} 4... Nf6 {[%clk 0:03:01.9]} 5. Nc3 {[%clk 0:02:56.9]}
5... g6 {[%clk 0:03:02.2]} 6. Be3 {[%clk 0:02:54.7]} 6... Bg7 {[%clk 0:03:01.1]}
7. f3 {[%clk 0:02:51.9]} 7... Nc6 {[%clk 0:02:58.6]} 8. Qd2 {[%clk 0:02:49.1]}
8... O-O {[%clk 0:02:57.4]} 9. Bc4 {[%clk 0:02:49.3]} 9... Nxd4 {[%clk
0:02:55.6]} 10. Bxd4 {[%clk 0:02:48.1]} 10... Be6 {[%clk 0:02:56.1]} 11. Bb3
{[%clk 0:02:44.4]} 11... Qa5 {[%clk 0:02:56]} 12. O-O-O {[%clk 0:02:41.7]} 12...
b5 {[%clk 0:02:54.7]} 13. Kb1 {[%clk 0:02:39.3]} 13... b4 {[%clk 0:02:54]} 14.
Nd5 {[%clk 0:02:32.8]} 14... Bxd5 {[%clk 0:02:53.8]} 15. exd5 {[%clk 0:02:28.6]}
15... Qb5 {[%clk 0:02:48.3]} 16. Qd3 {[%clk 0:02:12.7]} 16... Qxd3 {[%clk
0:02:47.6]} 17. Rxd3 {[%clk 0:02:12.6]} 17... Nd7 {[%clk 0:02:48.2]} 18. Bf2
{[%clk 0:02:05.9]} 18... Rfc8 {[%clk 0:02:41.4]} 19. Re1 {[%clk 0:02:05]} 19...
Kf8 {[%clk 0:02:32]} 20. Rd2 {[%clk 0:01:52.9]} 20... a5 {[%clk 0:02:27.8]} 21.
Ba4 {[%clk 0:01:50.6]} 21... Ne5 {[%clk 0:02:26.6]} 22. Rde2 {[%clk 0:01:46.4]}
22... Bf6 {[%clk 0:02:19.1]} 23. Bd4 {[%clk 0:01:40.3]} 23... Rc4 {[%clk
0:02:14.8]} 24. Bxe5 {[%clk 0:01:38.2]} 24... Bxe5 {[%clk 0:02:15.7]} 25. Bc6
{[%clk 0:01:37.7]} 25... Rc8 {[%clk 0:02:13.9]} 26. g3 {[%clk 0:01:37.7]} 26...
e6 {[%clk 0:01:46]} 27. f4 {[%clk 0:01:36.4]} 27... Bf6 {[%clk 0:01:44.4]} 28.
Bd7 {[%clk 0:01:17.6]} 28... exd5 {[%clk 0:01:28.9]} 29. Bxc8 {[%clk 0:01:13.7]}
29... Rxc8 {[%clk 0:01:29.8]} 30. Rd1 {[%clk 0:01:06.6]} 30... d4 {[%clk
0:01:28]} 31. Kc1 {[%clk 0:01:01.4]} 31... a4 {[%clk 0:01:18.2]} 32. Rd3 {[%clk
0:00:56.8]} 32... Rc6 {[%clk 0:00:54.4]} 33. Kd2 {[%clk 0:00:56.2]} 33... Rc4
{[%clk 0:00:46.1]} 34. Re1 {[%clk 0:00:40.6]} 34... Rc7 {[%clk 0:00:29.2]} 35.
Re4 {[%clk 0:00:39.7]} 35... Rc4 {[%clk 0:00:26.6]} 36. Re2 {[%clk 0:00:33.6]}
36... Rc7 {[%clk 0:00:26]} 37. Re1 {[%clk 0:00:34]} 37... Rc4 {[%clk 0:00:25.8]}
38. b3 {[%clk 0:00:33.2]} 38... axb3 {[%clk 0:00:22]} 39. axb3 {[%clk
0:00:33.5]} 39... Rc7 {[%clk 0:00:19.9]} 40. Ra1 {[%clk 0:00:33.2]} 40... Rc6
{[%clk 0:00:20.3]} 41. Ra7 {[%clk 0:00:29.6]} 41... Kg7 {[%clk 0:00:20.8]} 42.
Rb7 {[%clk 0:00:28.8]} 42... g5 {[%clk 0:00:16.3]} 43. Rxb4 {[%clk 0:00:27]}
43... gxf4 {[%clk 0:00:16.7]} 44. gxf4 {[%clk 0:00:26.9]} 44... Kg6 {[%clk
0:00:17.6]} 45. Rb5 {[%clk 0:00:25.6]} 45... h6 {[%clk 0:00:16.1]} 46. Rg3+
{[%clk 0:00:24.3]} 46... Kh7 {[%clk 0:00:15.7]} 47. Rf5 {[%clk 0:00:24.4]} 47...
Bg7 {[%clk 0:00:15.3]} 48. Rxf7 {[%clk 0:00:23.7]} 1-0

[Event "Early-Titled-Tuesday-Blitz-September-05-2023"]
[Site "Chess.com"]
[Date "2023.09.05"]
[Round "3"]
[White "Nf3c5"]
[Black "viktorgen2021"]
[Result "0-1"]
[WhiteElo "2604"]
[BlackElo "2460"]
[TimeControl "180+1"]
[EndTime "8:27:51 PDT"]
[Termination "viktorgen2021 won on time"]

1. e4 {[%clk 0:03:00.9]} 1... g6 {[%clk 0:02:55.8]} 2. d4 {[%clk 0:03:00.1]}
2... Bg7 {[%clk 0:02:51.3]} 3. c3 {[%clk 0:02:59.5]} 3... d6 {[%clk 0:02:51.9]}
4. Bd3 {[%clk 0:02:58.6]} 4... Nf6 {[%clk 0:02:51.8]} 5. Nf3 {[%clk 0:02:57.5]}
5... O-O {[%clk 0:02:52.3]} 6. O-O {[%clk 0:02:57.6]} 6... Nc6 {[%clk
0:02:52.8]} 7. Bg5 {[%clk 0:02:54.7]} 7... e5 {[%clk 0:02:52.1]} 8. dxe5 {[%clk
0:02:54.6]} 8... Nxe5 {[%clk 0:02:51.1]} 9. Nxe5 {[%clk 0:02:54.2]} 9... dxe5
{[%clk 0:02:52]} 10. Qc2 {[%clk 0:02:49.2]} 10... Be6 {[%clk 0:02:51.8]} 11. Nd2
{[%clk 0:02:48.4]} 11... h6 {[%clk 0:02:48.7]} 12. Bh4 {[%clk 0:02:44.9]} 12...
Qe8 {[%clk 0:02:40.5]} 13. Rfe1 {[%clk 0:02:42.1]} 13... Nh5 {[%clk 0:02:40.4]}
14. Bc4 {[%clk 0:02:35.1]} 14... Nf4 {[%clk 0:02:39.2]} 15. Rad1 {[%clk
0:02:30.1]} 15... Bxc4 {[%clk 0:02:27.9]} 16. Nxc4 {[%clk 0:02:29.8]} 16... Qe6
{[%clk 0:02:28.1]} 17. b3 {[%clk 0:02:22.4]} 17... Bf6 {[%clk 0:02:24.1]} 18.
Bg3 {[%clk 0:02:17.8]} 18... Rad8 {[%clk 0:02:18.4]} 19. f3 {[%clk 0:01:48.5]}
19... Be7 {[%clk 0:02:09.2]} 20. Bf2 {[%clk 0:01:45.4]} 20... b6 {[%clk
0:02:04]} 21. Be3 {[%clk 0:01:40.6]} 21... Qf6 {[%clk 0:01:54.7]} 22. g3 {[%clk
0:01:36.9]} 22... Ne6 {[%clk 0:01:51.5]} 23. Bxh6 {[%clk 0:01:26.8]} 23... Qxf3
{[%clk 0:01:48.5]} 24. Bxf8 {[%clk 0:01:19.6]} 24... Rxf8 {[%clk 0:01:21.4]} 25.
b4 {[%clk 0:01:14]} 25... Ng5 {[%clk 0:01:13.4]} 26. Qg2 {[%clk 0:00:56.4]}
26... Qxc3 {[%clk 0:01:11.3]} 27. Ne3 {[%clk 0:00:46.5]} 27... Bxb4 {[%clk
0:00:49.6]} 28. Kh1 {[%clk 0:00:46.4]} 28... Bd6 {[%clk 0:00:32.5]} 29. Nd5
{[%clk 0:00:44.7]} 29... Qc4 {[%clk 0:00:28.4]} 30. h4 {[%clk 0:00:43.9]} 30...
Ne6 {[%clk 0:00:27.6]} 31. Qe2 {[%clk 0:00:30.6]} 31... Qa4 {[%clk 0:00:24.2]}
32. Rd2 {[%clk 0:00:15.6]} 32... Kg7 {[%clk 0:00:24.4]} 33. Red1 {[%clk
0:00:15.3]} 33... Rh8 {[%clk 0:00:20.5]} 34. Kg2 {[%clk 0:00:15.2]} 34... Nd4
{[%clk 0:00:13.1]} 35. Qf2 {[%clk 0:00:15.2]} 35... f5 {[%clk 0:00:13.2]} 36.
exf5 {[%clk 0:00:14.6]} 36... Nxf5 {[%clk 0:00:11.6]} 37. Ne3 {[%clk 0:00:12]}
37... Qe4+ {[%clk 0:00:10.9]} 38. Kg1 {[%clk 0:00:08.1]} 38... Qxe3 {[%clk
0:00:10]} 39. Rf1 {[%clk 0:00:05.1]} 39... Qxf2+ {[%clk 0:00:09.6]} 40. Kxf2
{[%clk 0:00:06]} 40... Bc5+ {[%clk 0:00:09.1]} 41. Kf3 {[%clk 0:00:06.6]} 41...
e4+ {[%clk 0:00:07.5]} 42. Kf4 {[%clk 0:00:03.3]} 42... Be3+ {[%clk 0:00:07.5]}
0-1

[Event "Early-Titled-Tuesday-Blitz-September-05-2023"]
[Site "Chess.com"]
[Date "2023.09.05"]
[Round "3"]
[White "leandrojimenez"]
[Black "aranibos"]
[Result "0-1"]
[WhiteElo "2466"]
[BlackElo "2275"]
[TimeControl "180+1"]
[EndTime "8:27:51 PDT"]
[Termination "aranibos won on time"]

1. d4 {[%clk 0:03:00.9]} 1... Nf6 {[%clk 0:02:59.1]} 2. c4 {[%clk 0:03:01.3]}
2... e6 {[%clk 0:02:59.4]} 3. g3 {[%clk 0:03:00]} 3... c5 {[%clk 0:02:58.9]} 4.
Nf3 {[%clk 0:02:59.4]} 4... a6 {[%clk 0:02:57.8]} 5. Bg2 {[%clk 0:02:59.3]} 5...
cxd4 {[%clk 0:02:54.9]} 6. Nxd4 {[%clk 0:02:58.2]} 6... Nc6 {[%clk 0:02:55.4]}
7. O-O {[%clk 0:02:57.8]} 7... Bc5 {[%clk 0:02:49.4]} 8. Nb3 {[%clk 0:02:53.5]}
8... Be7 {[%clk 0:02:49.5]} 9. Nc3 {[%clk 0:02:48.2]} 9... O-O {[%clk 0:02:42]}
10. Bf4 {[%clk 0:02:47.7]} 10... d6 {[%clk 0:02:41.7]} 11. Qd2 {[%clk
0:02:25.7]} 11... e5 {[%clk 0:02:39.8]} 12. Bg5 {[%clk 0:02:24.4]} 12... Be6
{[%clk 0:02:40.1]} 13. Bxf6 {[%clk 0:02:20.3]} 13... Bxf6 {[%clk 0:02:39.9]} 14.
Nd5 {[%clk 0:02:20.2]} 14... Bxd5 {[%clk 0:02:28.1]} 15. Bxd5 {[%clk 0:02:15.9]}
15... Rc8 {[%clk 0:02:25.2]} 16. Rfd1 {[%clk 0:02:11.1]} 16... Be7 {[%clk
0:02:23.9]} 17. Rac1 {[%clk 0:01:27.8]} 17... Kh8 {[%clk 0:02:22.7]} 18. Na1
{[%clk 0:01:18.9]} 18... Qc7 {[%clk 0:02:11.1]} 19. Nc2 {[%clk 0:01:18.2]} 19...
f5 {[%clk 0:02:10.6]} 20. e3 {[%clk 0:01:07.1]} 20... Rcd8 {[%clk 0:02:09.4]}
21. f4 {[%clk 0:01:05.7]} 21... e4 {[%clk 0:02:08.7]} 22. b4 {[%clk 0:01:00.7]}
22... Bf6 {[%clk 0:02:06.5]} 23. b5 {[%clk 0:00:57.1]} 23... Ne7 {[%clk
0:02:04.8]} 24. a4 {[%clk 0:00:44]} 24... Nxd5 {[%clk 0:01:58.4]} 25. Qxd5
{[%clk 0:00:42.7]} 25... axb5 {[%clk 0:01:57.8]} 26. axb5 {[%clk 0:00:36.3]}
26... Qb6 {[%clk 0:01:58.1]} 27. Nb4 {[%clk 0:00:31]} 27... Qxe3+ {[%clk
0:01:56]} 28. Kg2 {[%clk 0:00:17.5]} 28... Qe2+ {[%clk 0:01:53.6]} 29. Kh1
{[%clk 0:00:15.9]} 29... Qf3+ {[%clk 0:01:51.6]} 30. Kg1 {[%clk 0:00:15.8]}
30... Rd7 {[%clk 0:01:46.6]} 31. Qd2 {[%clk 0:00:14.2]} 31... Bd8 {[%clk
0:01:42.1]} 32. Nd5 {[%clk 0:00:13.8]} 32... Re8 {[%clk 0:01:32.6]} 33. Qg2
{[%clk 0:00:13.6]} 33... Qb3 {[%clk 0:01:28.1]} 34. Re1 {[%clk 0:00:12.2]} 34...
Ba5 {[%clk 0:01:24.5]} 35. Re2 {[%clk 0:00:11.1]} 35... h6 {[%clk 0:01:20.3]}
36. g4 {[%clk 0:00:10.3]} 36... fxg4 {[%clk 0:01:14.5]} 37. Qxg4 {[%clk
0:00:09.9]} 37... e3 {[%clk 0:01:04.3]} 38. f5 {[%clk 0:00:08.9]} 38... Rg8
{[%clk 0:00:57.7]} 39. Kh1 {[%clk 0:00:07.6]} 39... Bd2 {[%clk 0:00:56]} 40. Rg1
{[%clk 0:00:07.2]} 40... Rf7 {[%clk 0:00:42.7]} 41. Qg6 {[%clk 0:00:06.3]} 41...
Rgf8 {[%clk 0:00:36.9]} 42. f6 {[%clk 0:00:04.9]} 42... Bc3 {[%clk 0:00:33.7]}
43. fxg7+ {[%clk 0:00:04.5]} 43... Bxg7 {[%clk 0:00:34.1]} 44. Qe4 {[%clk
0:00:02.8]} 44... Qa3 {[%clk 0:00:26.2]} 45. h3 {[%clk 0:00:01.7]} 45... Qc5
{[%clk 0:00:24.2]} 46. Ne7 {[%clk 0:00:01.2]} 46... d5 {[%clk 0:00:22.3]} 47.
Ng6+ {[%clk 0:00:01.5]} 47... Kg8 {[%clk 0:00:21.5]} 48. cxd5 {[%clk 0:00:01.8]}
48... Qxb5 {[%clk 0:00:19.5]} 0-1

[Event "Early-Titled-Tuesday-Blitz-September-05-2023"]
[Site "Chess.com"]
[Date "2023.09.05"]
[Round "3"]
[White "vladoboch"]
[Black "AndreiITrifan"]
[Result "0-1"]
[WhiteElo "2425"]
[BlackElo "2608"]
[TimeControl "180+1"]
[EndTime "8:27:56 PDT"]
[Termination "AndreiITrifan won by resignation"]

1. e4 {[%clk 0:03:00.9]} 1... e5 {[%clk 0:03:00.1]} 2. Nf3 {[%clk 0:03:00.7]}
2... Nc6 {[%clk 0:03:00.7]} 3. Bc4 {[%clk 0:03:01]} 3... Bc5 {[%clk 0:03:00.5]}
4. c3 {[%clk 0:03:01.3]} 4... Nf6 {[%clk 0:03:00.8]} 5. d3 {[%clk 0:03:01.3]}
5... d6 {[%clk 0:03:01.1]} 6. Nbd2 {[%clk 0:03:01.2]} 6... a6 {[%clk 0:03:01.5]}
7. Bb3 {[%clk 0:03:01.6]} 7... Ba7 {[%clk 0:03:01.6]} 8. Nf1 {[%clk 0:03:01.3]}
8... Ng4 {[%clk 0:02:42.8]} 9. Ne3 {[%clk 0:03:01]} 9... O-O {[%clk 0:02:42.8]}
10. O-O {[%clk 0:02:58.8]} 10... Nxe3 {[%clk 0:02:40.2]} 11. Bxe3 {[%clk
0:02:58.7]} 11... h6 {[%clk 0:02:31]} 12. d4 {[%clk 0:02:51.4]} 12... Bg4 {[%clk
0:02:29]} 13. d5 {[%clk 0:02:26.5]} 13... Ne7 {[%clk 0:02:28.4]} 14. Bxa7 {[%clk
0:02:25.8]} 14... Rxa7 {[%clk 0:02:29.3]} 15. h3 {[%clk 0:02:25.7]} 15... Bh5
{[%clk 0:02:28.8]} 16. Bc2 {[%clk 0:02:19.8]} 16... Ra8 {[%clk 0:02:12.8]} 17.
c4 {[%clk 0:02:12.2]} 17... Qd7 {[%clk 0:01:58.4]} 18. b4 {[%clk 0:02:06.6]}
18... a5 {[%clk 0:01:35.7]} 19. Ba4 {[%clk 0:01:46.1]} 19... Bxf3 {[%clk
0:01:18.8]} 20. Bxd7 {[%clk 0:01:45.3]} 20... Bxd1 {[%clk 0:01:16.8]} 21. Rfxd1
{[%clk 0:01:46.2]} 21... axb4 {[%clk 0:01:12.1]} 22. Rdb1 {[%clk 0:01:46.3]}
22... h5 {[%clk 0:00:41.4]} 23. Rxb4 {[%clk 0:01:45]} 23... Rfd8 {[%clk
0:00:41.9]} 24. Ba4 {[%clk 0:01:34.6]} 24... b6 {[%clk 0:00:41.1]} 25. Bb5
{[%clk 0:01:28.4]} 25... Ra5 {[%clk 0:00:32.7]} 26. a4 {[%clk 0:01:28]} 26...
Nc8 {[%clk 0:00:32.3]} 27. Rf1 {[%clk 0:01:25.9]} 27... Na7 {[%clk 0:00:31.8]}
28. f4 {[%clk 0:00:55.8]} 28... exf4 {[%clk 0:00:26.5]} 29. Rxf4 {[%clk
0:00:55.7]} 29... Nxb5 {[%clk 0:00:21]} 30. cxb5 {[%clk 0:00:56.1]} 30... Rda8
{[%clk 0:00:20.5]} 31. Rc4 {[%clk 0:00:56.4]} 31... R8a7 {[%clk 0:00:20.6]} 32.
Rf3 {[%clk 0:00:31.4]} 32... Rxa4 {[%clk 0:00:17.9]} 33. Rfc3 {[%clk 0:00:27.9]}
33... Rxc4 {[%clk 0:00:17.8]} 34. Rxc4 {[%clk 0:00:28.3]} 34... f6 {[%clk
0:00:18.3]} 35. Kf2 {[%clk 0:00:27.5]} 35... Kf7 {[%clk 0:00:18.7]} 36. Ke3
{[%clk 0:00:27.4]} 36... Ke7 {[%clk 0:00:18.9]} 37. Kf4 {[%clk 0:00:27.8]} 37...
g6 {[%clk 0:00:18.8]} 38. g4 {[%clk 0:00:26.6]} 38... hxg4 {[%clk 0:00:17.5]}
39. hxg4 {[%clk 0:00:25.8]} 39... Kd7 {[%clk 0:00:17.8]} 40. Rc3 {[%clk
0:00:22.2]} 40... Ra5 {[%clk 0:00:17.3]} 41. Rb3 {[%clk 0:00:22.6]} 41... Ra1
{[%clk 0:00:16.8]} 42. Rh3 {[%clk 0:00:09.6]} 42... Rf1+ {[%clk 0:00:16.3]} 43.
Ke3 {[%clk 0:00:09.7]} 43... Rg1 {[%clk 0:00:15.8]} 44. Kf3 {[%clk 0:00:09.3]}
44... Rb1 {[%clk 0:00:15.4]} 45. Rh7+ {[%clk 0:00:09]} 45... Kc8 {[%clk
0:00:15.5]} 46. Rh8+ {[%clk 0:00:09.4]} 46... Kb7 {[%clk 0:00:15.6]} 47. Rf8
{[%clk 0:00:10]} 47... g5 {[%clk 0:00:14]} 48. Rxf6 {[%clk 0:00:10]} 48... Rf1+
{[%clk 0:00:13.8]} 49. Kg3 {[%clk 0:00:09.4]} 49... Rxf6 {[%clk 0:00:14.7]} 0-1

[Event "Early-Titled-Tuesday-Blitz-September-05-2023"]
[Site "Chess.com"]
[Date "2023.09.05"]
[Round "3"]
[White "jk13"]
[Black "JoliyRoger"]
[Result "1-0"]
[WhiteElo "2688"]
[BlackElo "2477"]
[TimeControl "180+1"]
[EndTime "8:27:57 PDT"]
[Termination "jk13 won on time"]

1. e4 {[%clk 0:02:57.6]} 1... c6 {[%clk 0:02:59.3]} 2. Nc3 {[%clk 0:02:57.2]}
2... d5 {[%clk 0:03:00.2]} 3. Nf3 {[%clk 0:02:55.9]} 3... Nf6 {[%clk 0:03:00.3]}
4. e5 {[%clk 0:02:55.4]} 4... Ne4 {[%clk 0:03:00.1]} 5. Ne2 {[%clk 0:02:46.5]}
5... e6 {[%clk 0:02:56.5]} 6. d3 {[%clk 0:02:44.2]} 6... Nc5 {[%clk 0:02:56.6]}
7. Ng3 {[%clk 0:02:42]} 7... Ncd7 {[%clk 0:02:52.2]} 8. d4 {[%clk 0:02:39.9]}
8... b6 {[%clk 0:02:40.6]} 9. c4 {[%clk 0:02:11.1]} 9... Ba6 {[%clk 0:02:37.8]}
10. b3 {[%clk 0:02:10.5]} 10... b5 {[%clk 0:02:20.9]} 11. cxd5 {[%clk
0:01:28.8]} 11... cxd5 {[%clk 0:02:20.6]} 12. Bd3 {[%clk 0:01:26]} 12... b4
{[%clk 0:02:20.7]} 13. Bxa6 {[%clk 0:01:25.7]} 13... Nxa6 {[%clk 0:02:20.9]} 14.
O-O {[%clk 0:01:26.6]} 14... Nc7 {[%clk 0:02:14.3]} 15. Bg5 {[%clk 0:01:22.5]}
15... Be7 {[%clk 0:02:12.6]} 16. Bxe7 {[%clk 0:01:22.1]} 16... Qxe7 {[%clk
0:02:13.5]} 17. Nh5 {[%clk 0:01:21.3]} 17... O-O {[%clk 0:02:13.4]} 18. Qd2
{[%clk 0:01:14.7]} 18... a5 {[%clk 0:02:07.8]} 19. Qf4 {[%clk 0:01:08.1]} 19...
Nb5 {[%clk 0:01:44.5]} 20. Qg4 {[%clk 0:00:58.8]} 20... f5 {[%clk 0:01:21.9]}
21. exf6 {[%clk 0:00:59.1]} 21... Nxf6 {[%clk 0:01:22]} 22. Nxf6+ {[%clk
0:00:59.3]} 22... Rxf6 {[%clk 0:01:19.4]} 23. Rae1 {[%clk 0:01:00]} 23... Nc3
{[%clk 0:01:14.2]} 24. Re5 {[%clk 0:00:52.8]} 24... Raf8 {[%clk 0:00:58.4]} 25.
Ng5 {[%clk 0:00:35.9]} 25... Rf5 {[%clk 0:00:49.9]} 26. Nxe6 {[%clk 0:00:27.3]}
26... Rxe5 {[%clk 0:00:43.9]} 27. dxe5 {[%clk 0:00:28.2]} 27... Re8 {[%clk
0:00:33.1]} 28. Ng5 {[%clk 0:00:25.6]} 28... Qxe5 {[%clk 0:00:27.5]} 29. h4
{[%clk 0:00:23.6]} 29... h6 {[%clk 0:00:26.8]} 30. Nf3 {[%clk 0:00:23.4]} 30...
Qe4 {[%clk 0:00:25]} 31. Qd7 {[%clk 0:00:22.4]} 31... d4 {[%clk 0:00:17.1]} 32.
Kh1 {[%clk 0:00:16]} 32... d3 {[%clk 0:00:15.3]} 33. Re1 {[%clk 0:00:16.4]}
33... Ne2 {[%clk 0:00:09.9]} 34. Rd1 {[%clk 0:00:15.2]} 34... Re7 {[%clk
0:00:05.5]} 35. Qd8+ {[%clk 0:00:14.7]} 35... Kh7 {[%clk 0:00:04.4]} 36. Qxd3
{[%clk 0:00:14.5]} 36... Qxd3 {[%clk 0:00:04.8]} 37. Rxd3 {[%clk 0:00:15.4]}
37... Nc3 {[%clk 0:00:05.7]} 38. a3 {[%clk 0:00:14.8]} 38... Re2 {[%clk
0:00:01.6]} 39. axb4 {[%clk 0:00:14.3]} 39... axb4 {[%clk 0:00:02.5]} 40. Rd4
{[%clk 0:00:13.6]} 40... Rxf2 {[%clk 0:00:02.4]} 41. Rxb4 {[%clk 0:00:14]} 41...
Ne2 {[%clk 0:00:02.7]} 42. Kh2 {[%clk 0:00:13.7]} 42... Nc1 {[%clk 0:00:02.2]}
43. Rb5 {[%clk 0:00:11.2]} 1-0